bitfinex-derivatives/quotes_SOLF0:USTF0_20250630
["timestamp","ask_amount","ask_price","bid_price","bid_amount"]
[1751306290916,6.3735,156.87,156.85,6.3738]
[1751306291722,6.3735,156.87,156.84,6.3742]
[1751306292420,57.26315309,156.92,156.83,3.72315309]
[1751306292620,7.99768325,156.93,156.85,3.72315309]
[1751306292819,2.1598,156.93,156.85,3.72315309]
[1751306293019,2.1598,156.93,156.87,3.72315309]
[1751306293418,5.83788325,156.95,156.89,3.72082375]
[1751306293615,2.1873,156.96,156.88,3.72081068]
[1751306294022,6.3713,156.92,156.9,6.3718]
[1751306294319,6.3713,156.92,156.91,6.45621469]
[1751306295022,6.3708,156.93,156.91,12.82761469]
[1751306295221,6.3708,156.93,156.92,6.45621469]
[1751306297024,6.3708,156.93,156.92,6.45816804]
[1751306297421,6.3719,156.9,156.87,53.54]
[1751306297612,5.83788325,156.95,156.88,6.45956846]
[1751306297812,11.74599393,156.96,156.89,6.45956846]
[1751306298018,6.3717,156.91,156.9,6.45956846]
[1751306299422,6.3719,156.9,156.88,6.3725]
[1751306300223,5.83788325,156.95,156.87,59.9129]
[1751306300920,9.55869393,156.95,156.87,53.54]
[1751306301121,3.72081068,156.91,156.83,52.08]
[1751306301719,3.72081068,156.89,156.8,4.83038072]
[1751306301925,6.3741,156.85,156.8,4.83038072]
[1751306302125,6.3741,156.85,156.82,6.3748]
[1751306303219,3.72081068,156.89,156.83,6.3745]
[1751306304318,6.3738,156.86,156.83,6.3745]
[1751306304720,3.72081068,156.89,156.83,6.3745]
[1751306304920,6.3739,156.86,156.83,6.3745]
[1751306305722,3.72081068,156.89,156.84,6.3741]
[1751306307426,6.3737,156.86,156.83,6.3745]
[1751306308427,6.3737,156.86,156.84,6.3742]
[1751306308727,4.2744,156.9,156.84,3.72081068]
[1751306309427,5.83788325,156.92,156.86,3.72081068]
[1751306309626,5.83788325,156.93,156.88,3.72081068]
[1751306309829,5.83788325,156.94,156.88,3.72081068]
[1751306310534,54.1606,156.95,156.88,3.72081068]
[1751306311029,6.3713,156.92,156.89,6.3719]
[1751306311423,54.1606,156.95,156.84,58.00567944]
[1751306311624,6.3719,156.9,156.88,3.72081068]
[1751306311920,63.71929393,156.95,156.88,3.72081068]
[1751306312121,6.3717,156.91,156.88,10.09321068]
[1751306312627,3.72081068,156.93,156.84,52.08]
[1751306312827,3.72081068,156.93,156.85,3.72081068]
[1751306313629,6.3727,156.88,156.86,6.3734]
[1751306313827,6.3727,156.88,156.85,3.72081068]
[1751306314028,3.72081068,156.91,156.84,58.4541]
[1751306314627,6.3734,156.87,156.84,58.4541]
[1751306315027,11.74819393,156.93,156.85,3.72081068]
[1751306315330,6.3729,156.88,156.85,3.72081068]
[1751306315623,11.74819393,156.93,156.85,3.72081068]
[1751306315932,5.83788325,156.92,156.84,52.08]
[1751306316130,9.55869393,156.91,156.82,6.3749]
[1751306316431,11.82059393,156.91,156.81,3.72081068]
[1751306316729,11.82059393,156.91,156.82,6.3749]
[1751306316730,6.3742,156.85,156.82,6.3749]
[1751306317119,11.82059393,156.91,156.83,6.3745]
[1751306317525,11.82059393,156.91,156.81,3.72081068]
[1751306317828,6.3741,156.85,156.82,6.3748]
[1751306318027,11.82059393,156.91,156.81,3.72081068]
[1751306318028,3.72081068,156.89,156.81,3.72081068]
[1751306318428,6.3744,156.84,156.82,6.375]
[1751306319029,3.72081068,156.89,156.82,6.375]
[1751306319030,6.3741,156.85,156.82,6.375]
[1751306319231,3.72081068,156.89,156.81,3.72081068]
[1751306319730,3.72081068,156.89,156.82,6.3748]
[1751306320325,5.83788325,156.9,156.81,3.72081068]
[1751306320529,6.3737,156.86,156.81,3.72081068]
[1751306320720,6.3737,156.86,156.84,6.3742]
[1751306320925,11.82059393,156.91,156.84,6.3742]
[1751306321121,6.3733,156.87,156.84,6.3742]
[1751306321331,11.82059393,156.91,156.84,6.3742]
[1751306321529,6.3733,156.87,156.84,6.3742]
[1751306323234,11.82059393,156.91,156.84,6.3742]
[1751306323733,6.3734,156.87,156.84,6.3742]
[1751306324636,11.82059393,156.91,156.84,6.3742]
[1751306325129,6.3733,156.87,156.84,6.3742]
[1751306325335,11.82059393,156.91,156.84,6.3742]
[1751306326139,6.3737,156.86,156.83,6.3745]
[1751306326333,11.82059393,156.91,156.83,6.3745]
[1751306326733,6.3737,156.86,156.83,6.3746]
[1751306327329,6.3737,156.86,156.82,3.72081068]
[1751306327534,6.3737,156.86,156.84,6.3742]
[1751306327735,6.3741,156.85,156.82,3.72081068]
[1751306328132,6.3741,156.85,156.82,10.09571068]
[1751306328944,6.3744,156.84,156.82,10.09571068]
[1751306329138,6.3744,156.84,156.82,3.72081068]
[1751306329543,6.3744,156.84,156.81,6.3753]
[1751306330035,3.72081068,156.87,156.8,55.80081068]
[1751306330235,3.72081068,156.83,156.76,60.34649012]
[1751306330443,6.3767,156.78,156.76,60.79811068]
[1751306330636,5.83788325,156.84,156.73,5.92567944]
[1751306330842,3.72081068,156.8,156.72,54.42081068]
[1751306331036,6.3773,156.77,156.74,6.3781]
[1751306331239,3.72081068,156.78,156.72,51.81015408]
[1751306331434,4.3197,156.81,156.72,50.7]
[1751306331639,3.72081068,156.79,156.72,57.0789]
[1751306331845,3.72081068,156.79,156.72,50.7]
[1751306332340,6.378,156.75,156.72,57.079]
[1751306332742,6.3777,156.76,156.72,57.079]
[1751306333046,6.3777,156.76,156.73,6.3787]
[1751306333243,6.3777,156.76,156.72,50.7]
[1751306333942,6.3777,156.76,156.73,6.3785]
[1751306336250,6.3777,156.76,156.72,50.7]
[1751306336556,3.72081068,156.8,156.72,50.7]
[1751306336848,3.72081068,156.79,156.72,50.7]
[1751306337044,6.3776,156.76,156.72,50.7]
[1751306337845,3.72081068,156.79,156.73,6.3785]
[1751306338348,6.3774,156.77,156.74,6.3783]
[1751306338549,3.72081068,156.79,156.74,6.3783]
[1751306338850,6.3776,156.76,156.73,6.3786]
[1751306339751,6.3776,156.76,156.74,6.3783]
[1751306340343,6.3776,156.76,156.73,6.3786]
[1751306340546,3.72081068,156.79,156.69,551.87041976]
[1751306340851,50.74,156.8,156.68,50.74]
[1751306340852,3.72081068,156.75,156.68,50.74]
[1751306341048,6.3799,156.71,156.66,3.72081068]
[1751306341250,50.74,156.8,156.65,4.84211301]
[1751306341251,5.8092629,156.74,156.65,4.84211301]
[1751306341445,50.74,156.8,156.69,3.7314629]
[1751306341645,3.7314629,156.76,156.65,1.11065011]
[1751306341845,3.7314629,156.76,156.66,3.7314629]
[1751306342046,3.7314629,156.76,156.71,6.3794]
[1751306342248,2.0778,156.79,156.7,3.7314629]
[1751306342249,3.7314629,156.78,156.7,3.7314629]
[1751306342651,2.0778,156.79,156.74,6.3781]
[1751306342946,2.0778,156.79,156.72,3.7314629]
[1751306343353,6.377,156.78,156.72,3.7314629]
[1751306343547,2.1667,156.81,156.74,6.3781]
[1751306344142,2.1667,156.81,156.75,6.3777]
[1751306344348,2.1667,156.81,156.73,3.7314629]
[1751306345354,2.0712,156.82,156.72,2.0774]
[1751306345551,54.4714629,156.83,156.72,2.0774]
[1751306345552,54.4714629,156.83,156.76,3.7314629]
[1751306345751,3.7314629,156.83,156.76,3.7314629]
[1751306345952,6.3767,156.79,156.74,3.7314629]
[1751306346746,6.3761,156.8,156.74,3.7314629]
[1751306346951,3.7314629,156.83,156.74,3.7314629]
[1751306347150,6.3765,156.79,156.76,6.3772]
[1751306347760,6.3765,156.79,156.77,6.3771]
[1751306348059,6.3761,156.8,156.74,3.7314629]
[1751306348259,3.7314629,156.83,156.74,3.7314629]
[1751306348559,3.7314629,156.83,156.72,2.0774]
[1751306348560,6.3753,156.82,156.78,3.7314629]
[1751306349259,6.3749,156.83,156.78,3.7314629]
[1751306349655,6.3744,156.84,156.78,3.7314629]
[1751306349863,2.1676,156.85,156.78,3.7314629]
[1751306350160,2.1676,156.85,156.8,6.3759]
[1751306350354,6.3749,156.83,156.78,3.7314629]
[1751306350752,6.3749,156.83,156.8,6.3757]
[1751306351859,6.3752,156.82,156.8,6.3757]
[1751306352161,2.1676,156.85,156.8,6.3757]
[1751306352755,6.375,156.83,156.8,6.3757]
[1751306353066,2.1676,156.85,156.78,3.7314629]
[1751306353368,6.3749,156.83,156.8,6.3757]
[1751306354963,2.1676,156.85,156.77,3.7314629]
[1751306355471,6.3751,156.83,156.77,3.7314629]
[1751306355863,2.1676,156.85,156.77,3.7314629]
[1751306356263,6.3752,156.82,156.79,6.3762]
[1751306356665,6.3752,156.82,156.77,3.7314629]
[1751306356870,6.3752,156.82,156.79,6.376]
[1751306357666,6.3755,156.81,156.79,6.376]
[1751306358263,6.3753,156.82,156.79,6.376]
[1751306358468,5.8990629,156.85,156.79,6.376]
[1751306359172,6.3755,156.82,156.79,6.376]
[1751306359569,5.8990629,156.85,156.79,6.376]
[1751306359968,5.8990629,156.85,156.8,6.3758]
[1751306360874,6.3753,156.82,156.8,6.3758]
[1751306361066,6.3753,156.82,156.79,6.3762]
[1751306361272,5.8990629,156.85,156.79,6.3762]
[1751306361671,3.7314629,156.8,156.71,49.7]
[1751306361871,6.3779,156.76,156.71,53.4314629]
[1751306362067,3.7314629,156.8,156.73,6.3787]
[1751306362773,6.378,156.75,156.73,6.3787]
[1751306362972,3.7314629,156.8,156.71,53.4314629]
[1751306363163,3.7314629,156.82,156.73,3.7314629]
[1751306363971,6.3766,156.79,156.73,3.7314629]
[1751306364269,3.7314629,156.82,156.73,3.7314629]
[1751306364474,6.3757,156.81,156.73,3.7314629]
[1751306364875,3.7314629,156.82,156.73,3.7314629]
[1751306365067,6.3762,156.8,156.77,6.3769]
[1751306365473,6.3762,156.8,156.73,3.7314629]
[1751306365874,6.3757,156.81,156.73,3.7314629]
[1751306366172,6.3757,156.81,156.71,49.7]
[1751306366173,51.9449,156.83,156.75,3.7314629]
[1751306367275,6.3754,156.82,156.79,6.376]
[1751306367472,3.7314629,156.82,156.73,3.7314629]
[1751306367674,6.3762,156.8,156.77,6.3769]
[1751306367873,6.3762,156.8,156.73,3.7314629]
[1751306368073,3.7314629,156.82,156.75,3.7314629]
[1751306368274,6.3753,156.82,156.79,6.3761]
[1751306368477,2.2449,156.83,156.75,3.7314629]
[1751306368673,6.3752,156.82,156.79,6.3761]
[1751306368979,2.2449,156.83,156.79,6.3761]
[1751306369181,2.2449,156.83,156.75,3.7314629]
[1751306369677,2.2449,156.83,156.78,6.3765]
[1751306369880,2.2449,156.83,156.75,3.7314629]
[1751306370271,6.3759,156.81,156.78,6.3765]
[1751306370675,6.3758,156.81,156.78,6.3765]
[1751306371178,6.3758,156.81,156.79,6.3763]
[1751306372370,6.376,156.8,156.78,6.3766]
[1751306372680,2.2449,156.83,156.78,6.3766]
[1751306374076,2.2449,156.83,156.77,6.3769]
[1751306374681,2.2449,156.83,156.75,3.7314629]
[1751306375077,6.3763,156.8,156.77,6.3769]
[1751306375279,2.2449,156.83,156.77,6.3769]
[1751306375673,6.3763,156.8,156.77,6.3769]
[1751306376084,6.3766,156.79,156.77,6.3769]
[1751306376977,6.3766,156.79,156.76,6.3773]
[1751306377184,6.3768,156.78,156.76,6.3773]
[1751306377681,3.7314629,156.82,156.75,6.3779]
[1751306378078,6.3774,156.77,156.73,3.7314629]
[1751306378379,3.7314629,156.82,156.73,3.7314629]
[1751306378581,6.3772,156.77,156.75,6.3779]
[1751306378771,6.3772,156.77,156.73,3.7314629]
[1751306379376,6.3772,156.77,156.75,6.3779]
[1751306381582,6.3769,156.78,156.75,6.3779]
[1751306382981,8.00548325,156.85,156.77,3.7314629]
[1751306383179,2.1676,156.85,156.81,3.7314629]
[1751306383380,8.5418,156.85,156.82,6.3749]
[1751306383582,6.3742,156.85,156.82,6.3749]
[1751306383979,7.95348325,156.87,156.81,3.7314629]
[1751306383980,6.3746,156.84,156.81,10.1068629]
[1751306384489,2.1156,156.87,156.81,3.7314629]
[1751306384782,3.72483899,156.86,156.79,52.14483899]
[1751306384984,5.94563899,156.86,156.79,48.42]
[1751306385173,6.3758,156.81,156.79,48.42]
[1751306385375,3.72483899,156.84,156.79,48.42]
[1751306385878,6.3759,156.8,156.79,48.42]
[1751306386080,3.72483899,156.84,156.76,6.3774]
[1751306386279,3.72483899,156.82,156.75,48.42]
[1751306386478,6.377,156.78,156.75,48.42]
[1751306386677,4.1663,156.81,156.75,48.42]
[1751306387183,6.3773,156.77,156.75,48.42]
[1751306387380,4.1663,156.81,156.75,48.42]
[1751306387580,6.3769,156.78,156.75,48.42]
[1751306387781,6.3769,156.78,156.75,54.7977]
[1751306388280,6.3765,156.79,156.76,6.3774]
[1751306388975,6.3765,156.79,156.77,6.377]
[1751306391488,6.3765,156.79,156.75,48.42]
[1751306391489,6.3761,156.8,156.75,48.42]
[1751306391688,4.1663,156.81,156.75,48.42]
[1751306391876,4.1663,156.81,156.75,54.7978]
[1751306391877,6.377,156.78,156.75,54.7978]
[1751306392989,6.3765,156.79,156.76,6.3773]
[1751306393890,6.3768,156.78,156.76,6.3773]
[1751306394388,6.3765,156.79,156.76,6.3773]
[1751306396893,6.3765,156.79,156.77,6.3771]
[1751306399392,6.3765,156.79,156.75,48.42]
[1751306399393,6.3765,156.79,156.76,6.3773]
[1751306400293,6.377,156.78,156.76,6.3773]
[1751306400489,6.377,156.78,156.75,48.42]
[1751306400490,6.377,156.78,156.75,54.7976]
[1751306400794,6.3762,156.8,156.75,48.42]
[1751306400994,4.1663,156.81,156.77,6.3769]
[1751306401591,4.1663,156.81,156.76,6.3773]
[1751306401794,3.72483899,156.8,156.72,54.34567944]
[1751306402087,3.72483899,156.8,156.74,6.3783]
[1751306402088,6.3778,156.76,156.74,6.3783]
[1751306402293,5.79473899,156.8,156.72,48.42]
[1751306402488,11.63262224,156.8,156.72,48.42]
[1751306402891,11.63262224,156.8,156.75,6.3777]
[1751306403295,7.90778325,156.8,156.72,52.14483899]
[1751306403495,2.0699,156.8,156.76,6.3774]
[1751306403695,2.0699,156.8,156.74,3.72483899]
[1751306403995,6.3766,156.79,156.76,6.3773]
[1751306404198,4.1663,156.81,156.74,3.72483899]
[1751306404597,6.3762,156.8,156.76,6.3775]
[1751306404799,4.1663,156.81,156.76,6.3775]
[1751306404997,4.1663,156.81,156.74,3.72483899]
[1751306405997,2.0571,156.81,156.74,3.72483899]
[1751306407000,2.0571,156.81,156.73,5.92567944]
[1751306407199,5.78193899,156.81,156.73,9.65051843]
[1751306408104,6.3762,156.8,156.77,6.3769]
[1751306408801,8.4328,156.81,156.75,3.72483899]
[1751306409304,8.4328,156.81,156.78,6.3766]
[1751306409698,2.0571,156.81,156.75,3.72483899]
[1751306410307,5.83788325,156.83,156.82,6.3751]
[1751306410605,5.83788325,156.85,156.79,3.72483899]
[1751306410804,6.3744,156.84,156.79,3.72483899]
[1751306410999,6.3744,156.84,156.81,6.3753]
[1751306411400,5.78623899,156.86,156.78,5.92567944]
[1751306411596,11.62412224,156.86,156.77,58.07051843]
[1751306412099,6.3754,156.82,156.79,6.3762]
[1751306413210,6.3756,156.81,156.78,6.3766]
[1751306413502,11.62412224,156.86,156.77,52.14483899]
[1751306413903,6.3751,156.83,156.8,6.3759]
[1751306414106,11.62412224,156.86,156.77,52.14483899]
[1751306414303,8.435,156.86,156.83,6.3746]
[1751306414501,8.435,156.86,156.79,3.72483899]
[1751306414502,2.0614,156.86,156.79,3.72483899]
[1751306415809,7.96958325,156.88,156.81,3.72483899]
[1751306416511,6.3732,156.87,156.81,3.72483899]
[1751306416816,2.1317,156.88,156.81,3.72483899]
[1751306417112,2.1317,156.88,156.84,6.374]
[1751306417713,6.3731,156.87,156.84,6.374]
[1751306417914,2.1317,156.88,156.84,6.374]
[1751306418311,6.3732,156.87,156.84,6.374]
[1751306418807,6.3732,156.87,156.83,6.3745]
[1751306419309,6.3735,156.86,156.81,3.72483899]
[1751306419510,2.1389,156.9,156.82,48.3]
[1751306419809,3.72483899,156.88,156.82,48.3]
[1751306420014,3.72483899,156.88,156.82,54.675]
[1751306420213,3.72483899,156.88,156.82,48.3]
[1751306420713,6.3745,156.84,156.82,48.3]
[1751306421509,6.3745,156.84,156.82,54.675]
[1751306421910,6.3741,156.85,156.82,54.675]
[1751306422416,3.72483899,156.88,156.82,54.675]
[1751306423516,6.3743,156.84,156.82,54.675]
[1751306425017,6.3741,156.85,156.82,54.675]
[1751306425217,3.72483899,156.86,156.81,6.3752]
[1751306425419,3.72483899,156.86,156.79,2.197]
[1751306425420,6.3746,156.84,156.79,2.197]
[1751306425613,3.72483899,156.86,156.79,2.197]
[1751306426016,3.72483899,156.86,156.82,6.3749]
[1751306426217,6.3744,156.84,156.82,6.3749]
[1751306426618,6.3744,156.84,156.79,2.197]
[1751306428128,6.3744,156.84,156.81,6.3753]
[1751306428420,3.72579011,156.86,156.81,6.3753]
[1751306428620,3.72579011,156.86,156.81,6.3755]
[1751306428816,6.3743,156.84,156.81,6.3755]
[1751306429022,3.72579011,156.86,156.79,2.197]
[1751306429421,6.3743,156.85,156.82,6.3749]
[1751306430122,6.3743,156.84,156.82,6.3749]
[1751306430421,3.72579011,156.87,156.83,6.3747]
[1751306430923,3.72579011,156.87,156.84,6.3741]
[1751306431124,3.72579011,156.89,156.8,3.72579011]
[1751306431326,6.3729,156.88,156.8,3.72579011]
[1751306431526,6.3729,156.88,156.86,6.3734]
[1751306431722,3.72579011,156.89,156.8,3.72579011]
[1751306431922,3.72579011,156.89,156.85,6.3737]
[1751306432724,6.3729,156.88,156.85,6.3737]
[1751306433022,3.72579011,156.89,156.86,6.3734]
[1751306433218,6.3725,156.89,156.86,6.3734]
[1751306433921,52.5327,156.9,156.87,6.3728]
[1751306433922,8.4659,156.9,156.87,6.3728]
[1751306434625,8.4659,156.9,156.84,3.72579011]
[1751306434820,8.4659,156.9,156.79,133.317]
[1751306434821,3.72579011,156.89,156.8,3.72579011]
[1751306435027,3.72579011,156.89,156.85,6.3737]
[1751306435221,6.3729,156.88,156.85,6.3737]
[1751306435521,3.72579011,156.89,156.8,3.72579011]
[1751306435522,2.0938,156.9,156.89,6.3723]
[1751306435723,6.3711,156.92,156.86,3.72579011]
[1751306435924,3.72579011,156.93,156.84,48.28]
[1751306436320,6.3721,156.9,156.87,6.373]
[1751306436921,6.3715,156.91,156.88,6.3724]
[1751306437121,6.3715,156.91,156.87,3.72579011]
[1751306437321,52.4872,156.94,156.87,3.72579011]
[1751306437626,4.2072,156.94,156.87,3.72579011]
[1751306438026,6.3708,156.93,156.9,6.3716]
[1751306438226,2.1012,156.94,156.87,3.72141863]
[1751306438827,6.3707,156.93,156.87,3.72141863]
[1751306439026,2.1012,156.94,156.89,3.72141863]
[1751306439525,6.3701,156.95,156.89,3.72141863]
[1751306439725,6.3701,156.95,156.89,52.00141863]
[1751306439925,6.3703,156.94,156.89,52.00141863]
[1751306440128,5.80821863,156.96,156.89,48.28]
[1751306440424,3.72141863,156.94,156.85,48.28]
[1751306440618,3.72141863,156.92,156.85,48.28]
[1751306441127,6.3725,156.89,156.86,6.3733]
[1751306444124,6.372,156.9,156.87,6.373]
[1751306445330,2.0633,156.91,156.88,6.3725]
[1751306445732,2.0633,156.91,156.87,6.3729]
[1751306446433,6.3721,156.9,156.87,6.3729]
[1751306448022,8.4349,156.91,156.88,6.3725]
[1751306449235,8.4349,156.91,156.89,6.3721]
[1751306449531,6.3719,156.9,156.86,3.72141863]
[1751306449728,6.3719,156.9,156.87,6.3728]
[1751306449924,6.3721,156.9,156.87,6.3728]
[1751306452536,8.4348,156.91,156.86,3.72141863]
[1751306454442,53.99788325,156.95,156.86,3.72141863]
[1751306454643,2.2306,156.95,156.85,48.28]
[1751306454843,2.2306,156.95,156.88,3.72141863]
[1751306455143,6.3708,156.93,156.88,3.72141863]
[1751306455345,2.2306,156.95,156.88,3.72141863]
[1751306455540,2.2306,156.95,156.91,6.3711]
[1751306455938,6.3705,156.94,156.91,6.3711]
[1751306456439,2.2306,156.95,156.91,6.3711]
[1751306456743,6.3707,156.93,156.91,6.3711]
[1751306458046,6.3704,156.94,156.91,6.3711]
[1751306458840,2.2306,156.95,156.86,3.72141863]
[1751306459040,3.72141863,156.94,156.86,3.72141863]
[1751306459244,2.2306,156.95,156.89,3.72141863]
[1751306459842,2.2306,156.95,156.87,3.72141863]
[1751306460846,2.2306,156.95,156.89,6.372]
[1751306461047,5.95201863,156.95,156.87,3.72141863]
[1751306461247,3.72141863,156.93,156.86,3.72141863]
[1751306461448,6.3721,156.9,156.87,6.3729]
[1751306461647,3.72141863,156.93,156.86,3.72141863]
[1751306461844,6.3716,156.91,156.89,6.3722]
[1751306462450,6.3719,156.9,156.88,6.3726]
[1751306462750,6.3719,156.9,156.86,3.72141863]
[1751306463048,6.3719,156.9,156.87,6.3729]
[1751306463249,6.3716,156.91,156.86,3.72141863]
[1751306464151,11.88472755,156.95,156.86,3.72141863]
[1751306464453,11.88472755,156.95,156.88,6.3724]
[1751306465151,6.3714,156.92,156.88,6.3724]
[1751306465357,6.3714,156.92,156.89,6.3722]
[1751306466455,5.93270892,156.95,156.91,3.72102937]
[1751306466656,5.93270892,156.97,156.9,48.16]
[1751306466956,5.93270892,156.97,156.91,6.3713]
[1751306466957,6.3702,156.94,156.91,6.3713]
[1751306467456,6.3702,156.94,156.9,48.16]
[1751306467958,6.37,156.95,156.91,6.3714]
[1751306468258,6.37,156.95,156.9,51.88102937]
[1751306468558,5.93270892,156.97,156.92,3.72102937]
[1751306468959,5.93270892,156.97,156.92,3.71910494]
[1751306469160,12.30200892,156.97,156.94,6.3702]
[1751306469562,5.93270892,156.97,156.92,3.71910494]
[1751306469759,5.93270892,156.97,156.92,6.371]
[1751306470160,6.3703,156.94,156.91,10.09030494]
[1751306470664,6.3707,156.93,156.9,54.5317]
[1751306471959,6.3702,156.95,156.9,48.16]
[1751306472165,8.02520892,156.98,156.9,48.16]
[1751306472464,5.93270892,156.97,156.9,48.16]
[1751306472661,6.3705,156.94,156.91,6.3712]
[1751306473053,3.71910494,156.97,156.86,5.94254263]
[1751306473258,3.71910494,156.95,156.86,5.94254263]
[1751306473458,2.0998,156.94,156.86,5.94254263]
[1751306473658,6.3721,156.9,156.88,6.3724]
[1751306473858,5.90140494,156.93,156.85,51.87910494]
[1751306474266,6.3721,156.9,156.85,51.87910494]
[1751306474864,2.0925,156.98,156.89,3.71910494]
[1751306475065,2.0925,156.98,156.91,3.71910494]
[1751306475865,6.3698,156.95,156.93,6.3704]
[1751306476464,6.3698,156.95,156.92,6.3708]
[1751306476961,6.3703,156.94,156.91,6.3712]
[1751306477265,5.81160494,156.98,156.9,48.02]
[1751306477474,5.94369469,156.96,156.9,54.3915]
[1751306478461,6.3711,156.92,156.9,48.02]
[1751306479168,6.3711,156.92,156.9,54.3917]
[1751306479359,6.3711,156.92,156.9,48.02]
[1751306479558,9.66279963,156.96,156.89,6.3721]
[1751306479755,9.66279963,156.96,156.87,3.71910494]
[1751306480158,9.66279963,156.96,156.89,6.372]
[1751306480364,5.94369469,156.95,156.89,6.372]
[1751306480765,2.2766,156.94,156.89,6.372]
[1751306481462,6.3713,156.92,156.89,6.372]
[1751306484271,6.3719,156.9,156.86,48.02]
[1751306484568,11.93939963,156.94,156.86,48.02]
[1751306484763,3.71910494,156.92,156.85,6.3736]
[1751306484965,9.66279963,156.92,156.85,6.3736]
[1751306485170,11.89409963,156.92,156.85,6.3736]
[1751306485568,11.89409963,156.92,156.83,3.71910494]
[1751306485569,5.94369469,156.91,156.84,6.3741]
[1751306486068,3.71910494,156.9,156.83,10.09360494]
[1751306486470,9.66279963,156.9,156.83,3.71910494]
[1751306486766,9.66279963,156.9,156.83,10.09360494]
[1751306487067,6.3736,156.86,156.83,10.09360494]
[1751306487263,6.3736,156.86,156.84,6.3742]
[1751306487470,5.94369469,156.9,156.83,3.71910494]
[1751306487862,9.66279963,156.91,156.86,6.3732]
[1751306488158,6.3726,156.89,156.86,6.3732]
[1751306488759,6.3727,156.88,156.86,6.3732]
[1751306489172,9.66279963,156.91,156.86,6.3732]
[1751306489173,9.469e-05,156.91,156.9,6.3719]
[1751306489376,11.88542732,156.95,156.9,6.3719]
[1751306489377,7.92492625,156.99,156.9,3.72159925]
[1751306489668,11.6465255,156.99,156.92,6.3707]
[1751306489973,11.6465255,156.99,156.9,3.72159925]
[1751306490171,3.72159925,156.99,156.9,3.72159925]
[1751306490373,6.3694,156.97,156.93,6.3704]
[1751306490570,3.72159925,156.99,156.93,6.3704]
[1751306490772,6.3698,156.96,156.93,6.3704]
[1751306490971,3.72159925,156.99,156.93,6.3704]
[1751306491169,3.72159925,156.99,156.92,6.3709]
[1751306491370,11.6465255,156.99,156.92,6.3709]
[1751306491568,59.6665255,156.99,156.9,3.72159925]
[1751306491771,59.6665255,156.99,156.91,6.3712]
[1751306491973,6.3705,156.94,156.91,6.3712]
[1751306492273,6.3705,156.94,156.92,6.3709]
[1751306493576,6.37,156.95,156.92,6.3709]
[1751306494076,6.37,156.95,156.93,6.3706]
[1751306494679,6.3693,156.97,156.94,6.3702]
[1751306495577,6.3695,156.96,156.94,6.3702]
[1751306496478,6.37,156.95,156.92,3.71924275]
[1751306496979,6.37,156.95,156.92,6.3708]
[1751306497281,6.3703,156.94,156.9,3.71924275]
[1751306497478,6.3703,156.94,156.91,6.3713]
[1751306497976,3.71924275,156.93,156.85,5.94946185]
[1751306498183,3.71924275,156.93,156.81,11.90271442]
[1751306498184,3.71924275,156.89,156.82,3.71924275]
[1751306498379,6.3745,156.84,156.8,8.04406185]
[1751306498578,6.3745,156.84,156.79,48.02]
[1751306498579,6.3745,156.84,156.81,6.3753]
[1751306499179,6.3737,156.86,156.81,3.71924275]
[1751306499689,3.71924275,156.9,156.84,6.3741]
[1751306499887,6.3734,156.87,156.84,6.3741]
[1751306500483,3.71924275,156.91,156.83,3.71924275]
[1751306500987,3.71924275,156.91,156.85,6.3736]
[1751306501785,6.373,156.88,156.85,6.3736]
[1751306502887,6.3731,156.87,156.84,6.3741]
[1751306503587,6.3731,156.87,156.85,6.3739]
[1751306504589,6.3731,156.87,156.8,2.2698]
[1751306504789,6.3731,156.87,156.81,5.51688977]
[1751306505488,6.3731,156.87,156.84,6.3741]
[1751306509093,6.3728,156.88,156.85,6.3737]
[1751306509292,11.98198977,156.93,156.85,6.3737]
[1751306509989,11.98198977,156.93,156.84,6.3741]
[1751306510187,5.51688977,156.91,156.81,5.51688977]